[Event "35th Roquetas Festival 2024"]
[Site "Roquetas de Mar"]
[Date "2024.01.06"]
[Round "7.7"]
[White "Raczek, Krzysztof"]
[Black "Espinosa Aranda, Angel"]
[Result "1/2-1/2"]
[ECO "A34"]
[WhiteElo "2347"]
[BlackElo "2431"]
[Annotator "RC"]
[PlyCount "47"]
[EventDate "2024.01.02"]
[EventType "swiss"]
[EventCountry "ESP"]
[SourceTitle "playchess.com"]
[Source "ChessBase"]
[SourceQuality "1"]
[TimeControl "5400+30"]

1. c4 {[%emt 0:00:01]} c5 {[%emt 0:00:49]} 2. Nc3 {[%emt 0:00:07]} Nf6 {[%emt 0:02:27]} 3. Nf3 {[%emt 0:00:05]} d5 {[%emt 0:01:00]} 4. cxd5 {[%emt 0:03:27]} Nxd5 {[%emt 0:00:07]} 5. e3 {[%emt 0:01:22]} Nc6 {[%emt 0:01:46]} 6. Bb5 {[%emt 0:10:14]} Nxc3 {[%emt 0:00:18]} 7. dxc3 {[%emt 0:05:25]} Bd7 {[%emt 0:08:38]} 8. e4 {[%emt 0:02:11]} Qc7 {[%emt 0:00:15]} 9. O-O {[%emt 0:03:23]} e6 {[%emt 0:00:21]} 10. Qe2 {[%emt 0:02:42]} a6 {[%emt 0:10:57]} 11. Ba4 {[%emt 0:03:38]} Be7 {[%emt 0:09:44]} 12. Bc2 {[%emt 0:16:06]} Bd6 {[%emt 0:10:50]} 13. Be3 {[%emt 0:05:49]} Rd8 {[%emt 0:04:05]} 14. Rad1 {[%emt 0:07:45]} Ne5 {[%emt 0:11:08]} 15. Nxe5 {[%emt 0:04:32]} Bxe5 {[%emt 0:00:15]} 16. Qh5 {[%emt 0:00:36]} b6 {[%emt 0:10:56]} 17. f4 {[%emt 0:06:46]} Bf6 {[%emt 0:00:41]} 18. e5 {[%emt 0:00:47]} Be7 {[%emt 0:00:18]} 19. Rf2 {[%emt 0:10:23]} g6 {[%emt 0:00:17]} 20. Qh6 {[%emt 0:00:23]} Bf8 {[%emt 0:00:08]} 21. Qh4 {[%emt 0:01:16]} Be7 {[%emt 0:00:06]} 22. Qh6 {[%emt 0:00:33]} Bf8 {[%emt 0:00:12]} 23. Qh4 {[%emt 0:00:01]} Be7 {[%emt 0:00:07]} 24. Qh6 {[%emt 0:00:05]} 1/2-1/2

[Event "35th Roquetas Festival 2024"]
[Site "Roquetas de Mar"]
[Date "2024.01.06"]
[Round "7.8"]
[White "Fiorito, Joaquin"]
[Black "Shamatava, Nikolozi"]
[Result "1-0"]
[ECO "A45"]
[WhiteElo "2401"]
[BlackElo "2088"]
[Annotator "RC"]
[PlyCount "93"]
[EventDate "2024.01.02"]
[EventType "swiss"]
[EventCountry "ESP"]
[SourceTitle "playchess.com"]
[Source "ChessBase"]
[SourceQuality "1"]
[TimeControl "5400+30"]

1. d4 {[%emt 0:00:03]} Nf6 {[%emt 0:00:06]} 2. Nc3 {[%emt 0:00:11]} d5 {[%emt 0:00:05]} 3. Bf4 {[%emt 0:00:04]} c5 {[%emt 0:00:36]} 4. e3 {[%emt 0:00:04]} cxd4 {[%emt 0:00:03]} 5. exd4 {[%emt 0:00:06]} a6 {[%emt 0:00:02]} 6. Nf3 {[%emt 0:00:09]} Bf5 {[%emt 0:03:22]} 7. Ne5 {[%emt 0:00:44]} Nc6 {[%emt 0:01:51]} 8. g4 {[%emt 0:00:08]} Be6 {[%emt 0:05:58]} 9. f3 {[%emt 0:09:59]} Rc8 {[%emt 0:05:45]} 10. Qd2 {[%emt 0:00:32]} h5 {[%emt 0:04:41]} 11. g5 {[%emt 0:01:12]} Nd7 {[%emt 0:01:14]} 12. Nxc6 {[%emt 0:03:12]} Rxc6 {[%emt 0:00:23]} 13. g6 {[%emt 0:00:04]} fxg6 {[%emt 0:00:42]} 14. Bd3 {[%emt 0:00:39]} Bf7 {[%emt 0:03:20]} 15. Ne2 {[%emt 0:02:27]} e5 {[%emt 0:11:59]} 16. dxe5 {[%emt 0:04:46]} Bc5 {[%emt 0:00:39]} 17. O-O-O {[%emt 0:02:27]} O-O {[%emt 0:00:55]} 18. Rhe1 {[%emt 0:09:45]} Qb6 {[%emt 0:04:24]} 19. Kb1 {[%emt 0:03:03]} Nxe5 {[%emt 0:01:45]} 20. Rf1 {[%emt 0:10:20]} Nc4 {[%emt 0:08:35]} 21. Bxc4 {[%emt 0:00:18]} dxc4 {[%emt 0:00:02]} 22. Be5 {[%emt 0:01:14]} Rcc8 {[%emt 0:08:04]} 23. Nc3 {[%emt 0:13:11]} Qa5 {[%emt 0:04:57]} 24. Qg5 {[%emt 0:05:44]} Bb4 {[%emt 0:14:06]} 25. f4 {[%emt 0:06:45]} Rfd8 {[%emt 0:02:16]} 26. Rde1 {[%emt 0:01:29]} Re8 {[%emt 0:01:28]} 27. Qg3 {[%emt 0:00:55]} Bxc3 {[%emt 0:01:07]} 28. Bxc3 {[%emt 0:00:30]} Qf5 {[%emt 0:00:08]} 29. Be5 {[%emt 0:02:33]} Be6 {[%emt 0:04:22]} 30. Qc3 {[%emt 0:00:19]} Qf7 {[%emt 0:00:25]} 31. Rg1 {[%emt 0:01:30]} Bg4 {[%emt 0:01:45]} 32. h3 {[%emt 0:00:22]} Bf5 {[%emt 0:00:08]} 33. Rg5 {[%emt 0:00:26]} Rcd8 {[%emt 0:06:23]} 34. Reg1 {[%emt 0:00:14]} Rd7 {[%emt 0:00:25]} 35. a3 {[%emt 0:01:12]} Qe6 {[%emt 0:00:10]} 36. R5g2 {[%emt 0:06:39]} Ree7 {[%emt 0:00:20]} 37. Re1 {[%emt 0:01:04]} b5 {[%emt 0:02:26]} 38. Rgg1 {[%emt 0:00:51]} Qd5 {[%emt 0:00:43]} 39. Kc1 {[%emt 0:00:12]} Qc6 {[%emt 0:00:31]} 40. Rg3 {[%emt 0:02:56]} Qb6 {[%emt 0:00:57]} 41. Rge3 {[%emt 0:01:11]} Qc6 {[%emt 0:00:33]} 42. R3e2 {[%emt 0:00:37]} Qd5 {[%emt 0:00:50]} 43. Kb1 {[%emt 0:00:48]} Re8 {[%emt 0:00:13]} 44. Qb4 {[%emt 0:01:40]} Bxh3 {[%emt 0:01:44]} 45. Bxg7 {[%emt 0:00:15]} Kxg7 {[%emt 0:02:00]} 46. Rxe8 {[%emt 0:00:04]} Rf7 {[%emt 0:00:12]} 47. Qc3+ {[%emt 0:00:01]} 1-0

[Event "35th Roquetas Festival 2024"]
[Site "Roquetas de Mar"]
[Date "2024.01.06"]
[Round "7.9"]
[White "Habans Aguerrea, Javier"]
[Black "Camacho Collados, Jose"]
[Result "1-0"]
[ECO "A21"]
[WhiteElo "2368"]
[BlackElo "2381"]
[Annotator "RC"]
[PlyCount "117"]
[EventDate "2024.01.02"]
[EventType "swiss"]
[EventCountry "ESP"]
[SourceTitle "playchess.com"]
[Source "ChessBase"]
[SourceQuality "1"]
[TimeControl "5400+30"]

1. c4 {[%emt 0:00:03]} e5 {[%emt 0:00:06]} 2. Nc3 {[%emt 0:00:13]} Bb4 {[%emt 0:00:05]} 3. Qc2 {[%emt 0:01:18]} Nf6 {[%emt 0:00:15]} 4. Nf3 {[%emt 0:00:14]} Nc6 {[%emt 0:02:48]} 5. e3 {[%emt 0:00:13]} O-O {[%emt 0:02:19]} 6. Nd5 {[%emt 0:00:16]} a5 {[%emt 0:04:51]} 7. a3 {[%emt 0:00:51]} Bc5 {[%emt 0:01:49]} 8. Ng5 {[%emt 0:00:41]} g6 {[%emt 0:01:04]} 9. Nxf6+ {[%emt 0:00:19]} Qxf6 {[%emt 0:00:10]} 10. Ne4 {[%emt 0:00:07]} Qe7 {[%emt 0:00:19]} 11. Nxc5 {[%emt 0:03:15]} Qxc5 {[%emt 0:00:11]} 12. b3 {[%emt 0:11:13]} d5 {[%emt 0:02:02]} 13. Bb2 {[%emt 0:14:48]} Re8 {[%emt 0:06:53]} 14. Bd3 {[%emt 0:03:44]} Be6 {[%emt 0:12:03]} 15. Rc1 {[%emt 0:02:51]} d4 {[%emt 0:03:00]} 16. O-O {[%emt 0:04:45]} Rad8 {[%emt 0:01:30]} 17. Be4 {[%emt 0:07:20]} Rd7 {[%emt 0:08:01]} 18. Rfe1 {[%emt 0:04:38]} Red8 {[%emt 0:03:55]} 19. h3 {[%emt 0:00:52]} Qe7 {[%emt 0:06:51]} 20. Bxc6 {[%emt 0:02:08]} bxc6 {[%emt 0:00:58]} 21. exd4 {[%emt 0:03:16]} exd4 {[%emt 0:00:36]} 22. Re5 {[%emt 0:00:21]} c5 {[%emt 0:02:05]} 23. Rce1 {[%emt 0:01:12]} Rb8 {[%emt 0:03:36]} 24. a4 {[%emt 0:00:47]} Qd6 {[%emt 0:06:37]} 25. Ba3 {[%emt 0:02:39]} Qb6 {[%emt 0:03:42]} 26. Rb1 {[%emt 0:01:55]} f6 {[%emt 0:12:59]} 27. Rxc5 {[%emt 0:01:50]} Kg7 {[%emt 0:02:31]} 28. Rb5 {[%emt 0:03:36]} Qa7 {[%emt 0:00:02]} 29. Bc5 {[%emt 0:03:08]} Qa8 {[%emt 0:00:10]} 30. Rxb8 {[%emt 0:00:07]} Qxb8 {[%emt 0:00:01]} 31. Re1 {[%emt 0:01:37]} Bf5 {[%emt 0:05:41]} 32. d3 {[%emt 0:01:43]} h5 {[%emt 0:00:19]} 33. Qb2 {[%emt 0:01:14]} Qd8 {[%emt 0:00:33]} 34. Qe2 {[%emt 0:00:16]} h4 {[%emt 0:01:03]} 35. Qf3 {[%emt 0:06:35]} Qb8 {[%emt 0:00:32]} 36. Qc6 {[%emt 0:02:20]} Kf7 {[%emt 0:00:39]} 37. Re4 {[%emt 0:02:01]} Qd8 {[%emt 0:00:07]} 38. Rf4 {[%emt 0:04:15]} Qe8 {[%emt 0:02:47]} 39. Rxh4 {[%emt 0:08:03]} g5 {[%emt 0:03:14]} 40. Rxd4 {[%emt 0:02:23]} Rxd4 {[%emt 0:01:03]} 41. Qxe8+ {[%emt 0:00:01]} Kxe8 {[%emt 0:00:01]} 42. Bxd4 {[%emt 0:00:01]} Ke7 {[%emt 0:01:38]} 43. Bc3 {[%emt 0:00:32]} Bxd3 {[%emt 0:01:54]} 44. Bxa5 {[%emt 0:00:01]} c5 {[%emt 0:00:34]} 45. Bb6 {[%emt 0:01:10]} Bc2 {[%emt 0:00:48]} 46. Bxc5+ {[%emt 0:00:01]} Ke6 {[%emt 0:00:08]} 47. b4 {[%emt 0:00:22]} Bxa4 {[%emt 0:00:02]} 48. b5 {[%emt 0:00:35]} f5 {[%emt 0:01:17]} 49. Be3 {[%emt 0:00:29]} f4 {[%emt 0:00:15]} 50. Bd4 {[%emt 0:00:04]} Kf5 {[%emt 0:00:45]} 51. f3 {[%emt 0:00:44]} Ke6 {[%emt 0:00:18]} 52. b6 {[%emt 0:00:09]} Bc6 {[%emt 0:00:32]} 53. c5 {[%emt 0:00:48]} Bb7 {[%emt 0:00:42]} 54. Bg7 {[%emt 0:00:15]} Kf7 {[%emt 0:00:26]} 55. Be5 {[%emt 0:00:06]} Ke6 {[%emt 0:00:11]} 56. Bd6 {[%emt 0:00:11]} Bc6 {[%emt 0:00:55]} 57. Kh2 {[%emt 0:00:37]} Bb7 {[%emt 0:00:34]} 58. h4 {[%emt 0:00:06]} gxh4 {[%emt 0:00:17]} 59. Kh3 {[%emt 0:00:01]} 1-0

[Event "35th Roquetas Festival 2024"]
[Site "Roquetas de Mar"]
[Date "2024.01.06"]
[Round "7.10"]
[White "Cuenca Jimenez, Jose Fernando"]
[Black "Vingris, Mikelis"]
[Result "1-0"]
[ECO "A30"]
[WhiteElo "2514"]
[BlackElo "2248"]
[Annotator "TA"]
[PlyCount "145"]
[EventDate "2024.01.02"]
[EventType "swiss"]
[EventCountry "ESP"]
[SourceTitle "playchess.com"]
[Source "ChessBase"]
[SourceQuality "1"]
[TimeControl "5400+30"]

{[%evp 17,145,42,47,0,5,0,0,-16,0,-3,10,-25,0,0,7,0,30,-10,-4,-20,-9,0,0,0,0,0,0,0,0,0,0,0,95,22,33,3,44,57,27,38,99,8,23,-6,0,-45,2,-42,-41,-75,-57,-78,-32,-44,-20,-21,-25,-73,0,0,0,0,0,0,0,0,67,57,54,53,54,0,45,47,28,42,25,0,0,0,68,44,123,119,139,131,129,124,136,138,185,178,157,44,187,45,745,508,2365,256,304,200,189,0,250,158,419,396,413,308,278,0,333,142,530,464,845,843,787,918,783,772,29987,29988,29986,29975,29975,29976,29996,29992]} 1. c4 {[%emt 0:00:04]} c5 {[%emt 0:00:15]} 2. Nf3 {[%emt 0:00:20]} Nc6 {[%emt 0:00:15]} 3. d4 {[%emt 0:00:04]} cxd4 {[%emt 0:00:07]} 4. Nxd4 {[%emt 0:00:03]} e6 {[%emt 0:00:08]} 5. Nc3 {[%emt 0:02:26]} Bb4 {[%emt 0:00:08]} 6. g3 {[%emt 0:02:37]} Nf6 {[%emt 0:02:20]} 7. Bg2 {[%emt 0:00:32]} d5 {[%emt 0:11:03]} 8. O-O {[%emt 0:01:48]} O-O {[%emt 0:04:11]} 9. cxd5 {[%emt 0:02:50]} exd5 {[%emt 0:14:56]} 10. Nc2 {[%emt 0:29:12] A33: Symmetrical English: 2 Nf3 Nf6 3 d4 cxd4 4 Nxd4 e6 5 Nc3 Nc6.} (10. Bg5 $5 {[%cal Rc3d5]}) 10... Bxc3 {[%emt 0:07:32]} 11. bxc3 {[%emt 0:00:01]} Qa5 {[%emt 0:09:25] [#]} 12. Bd2 $146 {[%emt 0:08:50][%cal Oc3c4] The position is equal.} ({Predecessor:} 12. Bb2 Be6 13. a4 Rfe8 14. Ne3 Rac8 15. Qd3 Ne4 16. Rfd1 Ne5 17. Qb5 Qc7 18. c4 Nxc4 19. Nxd5 Bxd5 20. Rxd5 {½-½ Miladinovic,I (2561)-Arab,A (2460) Algiers Ameyar Memorial 13th 2015 (9)}) 12... Qc5 {[%emt 0:02:25]} 13. Nb4 {[%emt 0:05:33]} Qc4 {[%emt 0:14:35]} 14. Be1 {[%emt 0:11:03][%cal Rb4d5]} Bg4 {[%emt 0:10:18]} 15. f3 {[%emt 0:00:20]} Bf5 {[%emt 0:02:03]} 16. g4 {[%emt 0:03:31] aiming for Nxc6.} Bg6 {[%emt 0:04:30]} 17. Qd2 {[%emt 0:06:55]} Rfe8 {[%emt 0:01:50]} 18. e3 {[%emt 0:00:36]} a5 {[%emt 0:07:07]} 19. Nxc6 {[%emt 0:02:16]} bxc6 {[%emt 0:00:05]} 20. Bg3 {[%emt 0:02:45]} Ra7 {[%emt 0:01:11]} 21. Rfe1 {[%emt 0:01:17]} Rae7 {[%emt 0:01:40]} 22. Bf1 {[%emt 0:02:39]} Qc5 {[%emt 0:00:11]} 23. Bf2 {[%emt 0:01:36][%cal Oe3e4]} Qa3 {[%emt 0:00:25]} 24. c4 {[%emt 0:03:43]} Rb7 {[%emt 0:00:25]} (24... h5 $11) 25. Qc1 {[%emt 0:01:24]} (25. cxd5 $16 Rd8 26. Qc1 Qxc1 27. Raxc1 (27. Rexc1 cxd5 28. Rc5 a4 $16) 27... cxd5 28. Red1) 25... Qb4 {[%emt 0:00:34]} 26. a3 {[%emt 0:01:51]} Qb3 {[%emt 0:01:16]} 27. cxd5 {[%emt 0:04:04]} cxd5 {[%emt 0:00:08]} 28. a4 {[%emt 0:00:10]} Rd8 {[%emt 0:02:25]} (28... h5 $1 $14) 29. Qd2 {[%emt 0:00:52]} (29. Bb5 $16) 29... Rb4 $11 {[%emt 0:00:59]} 30. Bb5 {[%emt 0:01:37] [#]} d4 $1 {[%emt 0:01:20]} 31. Kg2 {[%emt 0:01:36][%cal Re3d4]} (31. exd4 Qxf3 32. Qe2 Qxg4+ 33. Qxg4 Nxg4 $17) (31. Qa2 h5) 31... Qd5 {[%emt 0:00:55]} (31... d3 $15) 32. exd4 {[%emt 0:02:27]} (32. e4 $5 Bxe4 33. fxe4 Nxe4 34. Qa2 $11) 32... Nxg4 {[%emt 0:00:24]} 33. Bg1 {[%emt 0:00:00]} Rb3 {[%emt 0:00:44][%csl Gb3][%cal Rd5f3]} 34. Qf4 {[%emt 0:01:11]} Nf6 {[%emt 0:00:43]} (34... Bh5 $17 35. h3 Nh6) 35. Re5 $15 {Prevents h6} Rb2+ {[%emt 0:00:19]} 36. Kh1 {[%emt 0:00:59]} Qb3 {[%emt 0:00:27]} 37. Rae1 {[%emt 0:00:46]} (37. Re3 $11 Qb4 38. Qc7) 37... Rb1 {[%emt 0:00:41]} (37... Qc2 38. R1e2 Qb1 39. Re1 $14 (39. Rxb2 Qxb2 40. Bc6 Qb6 $14)) (37... Qb4 $17) 38. Rxb1 {[%emt 0:00:44]} Qxb1 {[%emt 0:00:17]} 39. Qd2 {[%emt 0:00:23]} Bh5 {[%emt 0:00:51]} 40. Qe2 {[%emt 0:00:41]} (40. Qxa5 $2 Bxf3#) 40... Qb3 {[%emt 0:00:23]} 41. Kg2 {[%emt 0:00:12]} Rc8 {[%emt 0:00:22] Inhibits Bc6.} ({Better is} 41... h6 $11) 42. Rc5 $14 {[%emt 0:00:13]} Rd8 {[%emt 0:00:32]} 43. Qe3 {[%emt 0:00:32]} Qa2+ {[%emt 0:00:23]} 44. Qe2 {[%emt 0:00:37]} Qb3 {[%emt 0:00:09]} 45. Qd3 {[%emt 0:00:37]} Qa2+ {[%emt 0:00:18]} 46. Qc2 {[%emt 0:00:21]} Qa3 {[%emt 0:01:20][%csl Gh5][%cal Ra3f3]} 47. Qf5 {[%emt 0:01:02]} (47. Qc3 $5 {[%cal Rc3a3]} Qa2+ 48. Qc2 $16) 47... Bg6 {[%emt 0:00:35]} 48. Qe5 {[%emt 0:00:26]} Qa2+ {[%emt 0:00:28]} ({Don't do} 48... Bh5 49. Qe3 Qb2+ 50. Qe2 $16) (48... h6 $11) 49. Qe2 {[%emt 0:00:24]} Qa3 {[%emt 0:00:27]} (49... Qb1 $14) 50. Qe7 $1 $40 {[%emt 0:00:20][%mdl 128] White wants a kill.} Qa2+ {[%emt 0:00:24] [#]} 51. Bf2 $1 {[%emt 0:00:26] Dancing on a razor blade.} Rf8 {[%emt 0:00:11]} 52. Qe2 {[%emt 0:00:30]} Qb3 {[%emt 0:00:31]} 53. Qc4 {[%emt 0:00:18]} Qb1 {[%emt 0:01:03] [#]} (53... Qa3 $16) 54. Rc8 $1 $18 {[%emt 0:00:20]} Bf5 {[%emt 0:00:36]} 55. Rxf8+ {[%emt 0:00:37]} Kxf8 {[%emt 0:00:01]} 56. d5 {[%emt 0:00:48]} (56. Qc7 $18 g5 57. Bc4 (57. Qxa5 Kg7 $16)) 56... g6 $2 {[%emt 0:01:03][%mdl 8192]} (56... h6 $14) 57. Qd4 {[%emt 0:00:29]} Nd7 {[%emt 0:00:26]} (57... Kg7 $142 58. Bh4 Qc2+ 59. Kg3 Qc7+ 60. d6 Qd8) 58. d6 $2 {[%emt 0:00:27]} (58. Bxd7 {[%cal Od4f6] Threatening mate with Qf6!} Qd3 59. Qh8+ Ke7 60. Bh4+ Kd6 61. Qf6+ Kxd5 62. Bc6+ Kc4 63. Bb5+ {[%mdl 64] Skewer} Kb3 64. Qxf7+ Ka3 65. Be7+ Kb2 66. Bxd3) 58... Kg8 {[%emt 0:00:27] Wards off Qf6} 59. Qc3 {[%emt 0:01:00]} Qd1 {[%emt 0:00:40]} 60. Qd4 {[%emt 0:00:28]} ({White should try} 60. Bg3 $18) 60... Qc1 $2 {[%emt 0:00:28]} (60... Qb1 $1 $11 {and Black is okay.}) 61. Qe3 {[%emt 0:00:29]} Qc8 $2 {[%emt 0:00:32]} (61... Qd1 $16) 62. Qe7 {[%emt 0:00:30]} Nf8 {[%emt 0:00:12]} 63. Qe5 {[%emt 0:00:36] Prevents Qc3.} Nd7 {[%emt 0:00:25]} 64. Qe7 {[%emt 0:00:18]} Nf8 $1 65. h4 {[%emt 0:00:08]} (65. Qf6 $18 {is more deadly. White threatens Bd4 and mate.} Qe6 66. Qxe6 Bxe6 67. Bb6) 65... h5 $2 {[%emt 0:00:35][%mdl 8192]} (65... Qc3 $16 66. Qe1 (66. d7 Bxd7 67. Bxd7 Qc7 $11) 66... Qf6) 66. Bd4 {[%emt 0:00:46] Qf6 would kill now. This pair of bishops is nice.} Qc2+ {[%emt 0:00:36]} (66... Ne6 $142) 67. Kg3 {[%emt 0:00:32] White wants to mate with Qf6.} Qc1 {[%emt 0:01:00]} 68. Qe5 {[%emt 0:00:35][%csl Gd4][%cal Re5g7]} Qh6 {[%emt 0:00:15] Wards off Qg7+} 69. f4 {[%emt 0:00:37]} Ne6 {[%emt 0:00:53]} 70. d7 {[%emt 0:00:17] Active counter play! White mates.} f6 {[%emt 0:00:20] [#]} 71. Qxe6+ $3 {[%emt 0:00:23][%mdl 576] Remove Defender, Promotion} Bxe6 {[%emt 0:00:01]} 72. d8=Q+ {[%emt 0:00:05]} (72. d8=B $2 {too greedy.} Qf8 73. Bxa5 Qa8 $19) 72... Kh7 {[%emt 0:00:23]} 73. Qe7+ {[%emt 0:00:07] A cool game by Cuenca Jimenez.   Weighted Error Value: White=0.37/Black=0.24 (precise)} 1-0

[Event "35th Roquetas Festival 2024"]
[Site "Roquetas de Mar"]
[Date "2024.01.06"]
[Round "7.11"]
[White "Revaliente Montoya, Ciro"]
[Black "Camacho Collados, Marcos"]
[Result "1/2-1/2"]
[ECO "B41"]
[WhiteElo "2263"]
[BlackElo "2466"]
[Annotator "TA"]
[PlyCount "112"]
[EventDate "2024.01.02"]
[EventType "swiss"]
[EventCountry "ESP"]
[SourceTitle "playchess.com"]
[Source "ChessBase"]
[SourceQuality "1"]
[TimeControl "5400+30"]

{[%evp 14,112,63,56,47,48,62,54,64,35,43,16,11,0,76,57,59,56,55,59,59,37,43,37,78,12,6,0,0,0,0,0,0,0,1,0,0,-4,6,0,0,-22,-13,-17,0,-50,0,-100,0,0,0,0,0,0,0,0,0,0,0,0,0,0,0,0,0,0,0,0,0,0,0,0,0,0,0,0,0,0,0,0,0,0,0,0,0,0,0,-375,-367,-358,40,0,0,0,45,33,34,0,31,0,39]} 1. e4 {[%emt 0:07:14]} c5 {[%emt 0:00:08]} 2. Nf3 {[%emt 0:00:16]} e6 {[%emt 0:00:13]} 3. d4 {[%emt 0:00:16]} cxd4 {[%emt 0:00:08]} 4. Nxd4 {[%emt 0:00:03]} a6 {[%emt 0:00:07]} 5. c4 {[%emt 0:03:26]} Nf6 {[%emt 0:00:11]} 6. Nc3 {[%emt 0:00:08]} Qc7 {[%emt 0:00:07]} 7. a3 {[%emt 0:02:45]} b6 {[%emt 0:00:10]} 8. Be3 {[%emt 0:02:02]} Bb7 {[%emt 0:00:08] B41: Sicilian: Kan Variation: 5 c4.} 9. f3 {[%emt 0:04:28]} Nc6 {[%emt 0:00:13] 9...Be7 is becoming the main line.} 10. Be2 {[%emt 0:00:46]} Be7 {[%emt 0:00:12] White is slightly better.} 11. O-O {[%emt 0:00:29]} O-O {[%emt 0:02:43]} 12. Qd2 {[%emt 0:02:27]} Bd6 {[%emt 0:04:33]} 13. g3 {[%emt 0:10:45] [#]} Ne8 $146 {[%emt 0:14:24]} (13... Bxg3 $11 14. hxg3 Nxd4 15. Bxd4 Qxg3+ 16. Kh1 Qh3+ 17. Kg1 Qg3+ 18. Kh1 Qh3+ 19. Kg1 Qg3+) ({Predecessor:} 13... Be7 14. Rac1 Ne5 15. Na4 d6 16. b4 Ned7 17. Rc2 Rac8 18. Rb1 Qb8 19. Bf1 Ba8 {0-1 Valdes Escobar,A (2419)-Flores,D (2611) Asuncion zt 2.5 2011 (5)}) 14. Rfd1 {[%emt 0:07:07][%cal Oc3b5] White is more active.} Nxd4 {[%emt 0:03:52]} 15. Qxd4 {[%emt 0:03:41]} Bc5 {[%emt 0:01:52]} 16. Qd3 {[%emt 0:03:02]} f5 {[%emt 0:02:24]} 17. b4 {[%emt 0:13:08]} (17. Bxc5 {simplifies} Qxc5+ 18. Qd4 Qxd4+ 19. Rxd4 fxe4 20. Nxe4 Bc6 21. f4) 17... fxe4 {[%emt 0:03:53]} 18. Nxe4 {[%emt 0:01:58]} Bxe4 {[%emt 0:06:10]} 19. Qxe4 {[%emt 0:02:27]} (19. fxe4 $16 Bxe3+ 20. Qxe3) 19... Nd6 $11 {[%emt 0:00:26][%cal Be8d6,Bd6f5,Bf5d4][%mdl 32]} 20. Qd3 {[%emt 0:03:08]} Bxe3+ {[%emt 0:01:01]} 21. Qxe3 {[%emt 0:00:02] [#] aiming for Qe5.} Nf5 {[%emt 0:02:20]} 22. Qf2 {[%emt 0:06:07]} e5 {[%emt 0:02:46]} 23. Rd5 {[%emt 0:16:09]} a5 $36 {[%emt 0:05:58][%mdl 2048] Black is more active.} 24. b5 {[%emt 0:02:39]} Nd4 {[%emt 0:02:47]} 25. Rd1 {[%emt 0:00:15]} Rf7 {[%emt 0:02:25]} 26. Qe3 {[%emt 0:00:41]} d6 {[%emt 0:01:01]} 27. Rf1 {[%emt 0:00:50]} Raf8 {[%emt 0:03:05]} 28. Kg2 {[%emt 0:01:04]} Rf6 {[%emt 0:01:42]} 29. Qe4 {[%emt 0:00:49]} ({White should play} 29. f4 $11) 29... g5 {[%emt 0:01:12]} (29... Rh6 $15) 30. Bd3 {[%emt 0:04:58]} (30. a4 $11 {keeps the balance.}) 30... Qg7 {[%emt 0:07:05]} (30... Rxf3 31. Rxf3 Nxf3 32. Rxd6 $16) ({Black should try} 30... Nxf3 $17 {Strongly threatening ...Qf7.} 31. Be2 Nd4 32. Rxf6 Rxf6) 31. Rxd4 $1 {[%emt 0:00:59]} exd4 {[%emt 0:00:07]} 32. Qxd4 {[%emt 0:00:04]} Rb8 {[%emt 0:11:55]} (32... g4 {keeps more tension.} 33. f4 Re6 34. Qd5 Qf7) 33. Re1 {[%emt 0:00:54] Prevents Re6.} Kh8 {[%emt 0:00:51]} 34. Re4 {[%emt 0:00:27]} Rbf8 {[%emt 0:04:39]} 35. Be2 {[%emt 0:00:06]} Qc7 {[%emt 0:02:16]} 36. Re6 {[%emt 0:01:24]} Qc5 {[%emt 0:00:17]} 37. Qb2 {[%emt 0:01:10]} Kg7 {[%emt 0:00:13]} 38. Bd3 {[%emt 0:00:07]} h6 {[%emt 0:02:38]} 39. h3 {[%emt 0:01:04]} R8f7 {[%emt 0:03:31]} 40. Kh2 {[%emt 0:00:23]} Qc7 {[%emt 0:01:14]} 41. Qd4 {[%emt 0:00:04]} Qd8 {[%emt 0:00:22]} (41... Qc5 $5 42. Qb2 $8 Qc7 $11) 42. Kg2 {[%emt 0:00:35]} Kf8 {[%emt 0:00:44][%csl LRe6,LRf3]} 43. Re3 {[%emt 0:00:24]} Qc7 {[%emt 0:00:35]} 44. Bc2 {[%emt 0:01:06]} h5 {[%emt 0:01:31]} 45. Bd3 {[%emt 0:00:29]} Qc5 {[%emt 0:01:51]} 46. Qe4 {[%emt 0:00:05]} g4 {[%emt 0:03:42]} 47. hxg4 {[%emt 0:00:31]} hxg4 {[%emt 0:00:02]} 48. f4 {[%emt 0:00:52]} Qh5 {[%emt 0:00:48]} 49. Qe8+ {[%emt 0:00:35]} Kg7 {[%emt 0:00:01] Threatens to win with ...Rh6.} 50. Be4 $2 {[%emt 0:00:27][%mdl 8192]} (50. Kg1 $11 {and White stays safe.}) 50... Qh3+ $19 {[%emt 0:03:21]} ({Stronger than} 50... Rh6 51. Kg1 $11 (51. Bd5 $2 Qh1+ 52. Kf2 Rh2+)) 51. Kf2 {[%emt 0:00:08][%cal Bg2f2,Bf2e1,Be1e2][%mdl 32] [#]} Qh8 $2 {[%emt 0:00:58] Black is weak on the light squares} ({Weaker is} 51... Qh2+ 52. Ke1 $11) (51... Rxf4+ $1 $19 52. gxf4 Rxf4+ 53. Bf3 (53. Ke2 {leads to mate.} Qf1+ {[%mdl 64] Skewer} 54. Kd2 Rf2+ 55. Kc3 Qa1+ 56. Kd3 Qd1+ 57. Kc3 Qd2+ 58. Kb3 Qa2+ 59. Kc3 Qb2+ 60. Kd3 Rd2#) 53... Rxf3+ 54. Rxf3 Qxf3+ 55. Ke1 Qxa3 56. Qe7+ Kg6 57. Qe6+ Kg5 58. Qe7+ Kg6 59. Qe8+ Kf5 60. Qf7+ Kg5 61. Qe7+ Kf4 62. Qf7+ Ke4 63. Qd5+ Ke3 64. Qd2+ Kf3 65. Qf2+ Ke4 66. Qxb6 a4 67. Qb7+ Ke3 68. Qa7+ Kd3) 52. Bd5 {[%emt 0:00:48][%mdl 1024] White has compensation.} Qh2+ {[%emt 0:00:59]} 53. Ke1 $1 {[%emt 0:00:33]} Qg1+ {[%emt 0:00:15]} (53... Rf8 $5 {[%cal Rf8e8]} 54. Qe7+ Kh8 $11) 54. Ke2 {[%emt 0:00:09]} Qh2+ $1 {[%emt 0:00:35]} 55. Ke1 {[%emt 0:00:12] Really sharp!} (55. Kd1 $5) 55... Qg1+ {[%emt 0:00:36]} 56. Ke2 {[%emt 0:00:06]} (56. Kd2 $5 {[%cal Rd5f7]}) 56... Qh2+ $1 {[%emt 0:00:22] An exciting game.   Weighted Error Value: White=0.20 (precise) /Black=0.15 (very precise)} 1/2-1/2